Workbook

Sheet COVER
A1: US Youth/Junior World Championships Trials
A2: 2014-12-30
A3: SPRINT COMPETITION
A4: FINAL RESULTS
A5: Coleraine, MN | N5: Mt. Itasca Biathlon Association
C9: PATICIPATION
C10: CLASS | D10: START | E10: ENTRIES | F10: DNS | G10: DNF | H10: DSQ
C11: VETERAN MEN
C12: MASTER MEN
C13: SR MASTER MEN
C14: MEN
C15: VETERAN WOMEN
C16: MASTER WOMEN
C17: SR MASTER WOMEN
C18: WOMEN
C19: JR MEN
C20: JR WOMEN
C21: YOUTH MEN
C22: YOUTH WOMEN
C23: TOTAL | D23: =SUM(D11:D22) -> 0 | E23: =SUM(E11:E22) -> 0 | F23: =SUM(F11:F22) -> 0 | G23: =SUM(G11:G22) -> 0 | H23: =SUM(H11:H22) -> 0
C26: WEATHER | D26: 10:00:00 | E26: 11:00:00 | F26: 12:00:00 | G26: 13:00:00 | H26: 14:00:00
C27: AIR TEMP
C28: SNOW TEMP
C29: SKY CONDIT.
C30: WIND SPEED
C31: WIND DIRCT.
C34: JURY
C35: TECHNICAL DELIGATE: | G35: COMPETITION CHIEF:
C37: JURY:
C42: TD'S SIGNATURE:
C44: DATE / TIME:

Sheet Reg List
A1: =+COVER!A1 -> US Youth/Junior World Championships Trials
A2: =+COVER!A2 -> 2014-12-30
A3: =+COVER!A3 -> SPRINT COMPETITION
A4: REGISTRATION LIST
A5: Coleraine, MN | E5: Mt. Itasca Biathlon Association
A8: Class | B8: Name | C8: Town/Club | D8: Start # | E8: Class
A9: M | B9: Roberts, Wynn | C9: MN National Guard | D9: 21 | E9: =A9 -> M
A10: M | B10: Dalberg, Jacob | C10: MN National Guard | D10: 22 | E10: M
E11: 0
A12: MY | B12: Wonders, Hunter | C12: Skiku Biathlon | D12: 23 | E12: MY
A13: MJ | B13: Baker, Zean | C13: Nisswa NW/MN Biathlon | D13: 24 | E13: MJ
A14: MY | B14: Kilby, Alexander | C14: Skiku Biathlon | D14: 25 | E14: MY
A15: MY | B15: Kuzio, Nathanael | C15: EABC | D15: 26 | E15: MY
A16: MJ | B16: McElroy, Jordan | C16: National Guard Biathlon | D16: 27 | E16: MJ
A17: MY | B17: Everett, Paul | C17: Methow Valley Biathlon | D17: 28 | E17: MY
A18: MY | B18: Husain, Kamran | C18: Maine Winter Sports Center / Stratton Mountain School | D18: 29 | E18: MY
A19: MY | B19: Zink, Simon | C19: Steamboat Springs Winter Sport Club | D19: 30 | E19: MY
A20: MJ | B20: Halligan, Brian | C20: Maine Winter Sports Center | D20: 31 | E20: MJ
A21: MY | B21: Forshey, Matthew | C21: Saratoga Biathlon/HURT | D21: 32 | E21: MY
A22: MY | B22: Carroll, Peter | C22: Auburn Ski Club | D22: 33 | E22: MY
A23: MY | B23: Johnson, Cody | C23: Maine Winter Sports Center | D23: 34 | E23: MY
A24: MJ | B24: Rosholt, Warren | C24: MN National Guard | D24: 35 | E24: MJ
A25: MY | B25: Cooper, Travis | C25: Skiku Biathlon | D25: 36 | E25: MY
A26: MJ | B26: Garberich, Gerrit | C26: Nisswa NW/CSS/MN Biathlon | D26: 37 | E26: MJ
A27: MY | B27: Cervenka, Vasek | C27: Mt.Itasca /MN Biathlon | D27: 38 | E27: MY
A28: MY | B28: Larson, Alex | C28: LNR/MN Biathlon | D28: 39 | E28: MY
A29: MY | B29: Viren, Hans | C29: Mt.Itasca /MN Biathlon | D29: 40 | E29: MY
A30: MJ | B30: Nakada, Tadhg | C30: National Guard Biathlon | D30: 41 | E30: MJ
A31: MY | B31: Christiansen, Cam | C31: Nisswa NW/MN Biathlon | D31: 42 | E31: MY
A32: MY | B32: Zabell, Sam | C32: Auburn Ski Club | D32: 43 | E32: MY
A33: MY | B33: White, Lewis | C33: LNR/MN Biathlon | D33: 44 | E33: MY
A34: MJ | B34: Ellingson, Jakob | C34: Mt. Itasca/MN Biathlon | D34: 45 | E34: MJ
A35: MY | B35: Hanson, Anders | C35: Craftsbury Nordic | D35: 46 | E35: MY
A36: MY | B36: Cyr, Brendan | C36: Maine Winter Sports Center | D36: 47 | E36: MY
A37: MY | B37: Baird, Lochlan | C37: Mt.Itasca /MN Biathlon | D37: 48 | E37: MY
A38: MY | B38: Pearson, Jake | C38: Casper Mountain Biathlon Club | D38: 49 | E38: MY
A39: MY | B39: Jarvinen, Henry | C39: LNR/MN Biathlon | D39: 50 | E39: MY
E40: 0
A41: WY | B41: Ellingson, Siena | C41: Mt.Itasca/MN Biathlon | D41: 55 | E41: WY
A42: WY | B42: Putnam, Elise | C42: National Guard Biathlon | D42: 56 | E42: WY
A43: WY | B43: Von Imhof, Liesel | C43: Skiku Biathlon | D43: 57 | E43: WY
A44: WY | B44: Kautzer, Amanda | C44: LNR/MN Biathlon | D44: 58 | E44: =A44 -> WY
A45: WY | B45: Waichler, Claire | C45: Methow Valley Biathlon | D45: 59 | E45: WY
A46: WY | B46: Peterson, Rachel | C46: MN Biathlon | D46: 60 | E46: WY
A47: WY | B47: Gilliland, Grace | C47: Skiku Biathlon | D47: 61 | E47: WY
A48: WJ | B48: Paluszek, Mikaela | C48: Maine Winter Sport Center | D48: 62 | E48: WJ
A49: WY | B49: Parsons, Victoria | C49: Skiku Biathlon | D49: 63 | E49: WY
A50: WY | B50: Jehle, Annie | C50: Team Altius | D50: 64 | E50: WY
A51: WY | B51: Streinz, Hannah | C51: Maine Winter Sport Center | D51: 65 | E51: WY
A52: WY | B52: Wood, Jade | C52: Skiku Biathlon | D52: 66 | E52: WY
A53: WY | B53: Schoening, Maria | C53: MN Biathlon | D53: 67 | E53: WY
A54: WY | B54: Levins, Chloe | C54: Mountain Top Nordic Ski Club | D54: 68 | E54: WY
E55: 0
A56: MM | B56: Peterson, Paul | C56: MN National Guard | D56: 70 | E56: MM
E57: 0
E58: 0
E59: 0
E60: 0
E61: 0
E62: 0
E63: 0
E64: 0
E65: 0
E66: 0
E67: 0
E68: 0
E69: 0
E70: 0
E71: 0
E72: 0
E73: 0
E74: 0
E75: 0
E76: 0
E77: 0
E78: 0
E79: 0
E80: =A80 -> 0
E81: 0
E82: 0
E83: 0
E84: 0
E85: 0
E86: 0
E87: 0
E88: 0
E89: 0
E90: 0
E91: 0
E92: 0
E93: 0
E94: 0
E95: 0
E96: 0
E97: 0
E98: 0
E99: 0
E100: 0
E101: 0
E102: 0
E103: 0
E104: 0
B159: M
B160: MJ
B161: MM
B162: MS
B163: MV
B164: MY
B165: B
B166: W
B167: WJ
B168: WM
B169: WS
B170: WV
B171: WY
B172: G

Sheet Start List
A1: =+COVER!A1 -> US Youth/Junior World Championships Trials
A2: =+COVER!A2 -> 2014-12-30
A3: =+COVER!A3 -> SPRINT COMPETITION
A4: START LIST
A5: Coleraine, MN | L5: Mt. Itasca Biathlon Association
A7: Class | B7: StNr | C7: Name (last, first) | D7: Club/Team/Hometown, State | E7: Start | F7: Ski Time | G7: P | H7: P | I7: S | J7: S | K7: T | L7: Final
A8: M | B8: 21 | C8: Roberts, Wynn | D8: MN National Guard | E8: 12:10:30 | K8: =IF(ISBLANK(G8),"",G8+H8+I8+J8) -> 
A9: M | B9: 22 | C9: Dalberg, Jacob | D9: MN National Guard | E9: 12:11:00 | K9: =IF(ISBLANK(G9),"",G9+H9+I9+J9) -> 
A10: M | B10: 23 | C10: Shommer, Paul | D10: Continental Ski/USBA D Team | E10: 12:11:30 | K10: =IF(ISBLANK(G10),"",G10+H10+I10+J10) -> 
A11: MY | B11: 24 | C11: Wonders, Hunter | D11: Skiku Biathlon | E11: 12:12:00 | K11: =IF(ISBLANK(G11),"",G11+H11+I11+J11) -> 
A12: MJ | B12: 25 | C12: Baker, Zean | D12: Nisswa NW/MN Biathlon | E12: 12:12:30 | K12: =IF(ISBLANK(G12),"",G12+H12+I12+J12) -> 
A13: MY | B13: 26 | C13: Kilby, Alexander | D13: Skiku Biathlon | E13: 12:13:00 | K13: =IF(ISBLANK(G13),"",G13+H13+I13+J13) -> 
A14: MY | B14: 27 | C14: Kuzio, Nathanael | D14: EABC | E14: 12:13:30
A15: MJ | B15: 28 | C15: McElroy, Jordan | D15: National Guard Biathlon | E15: 12:14:00
A16: MY | B16: 29 | C16: Everett, Paul | D16: Methow Valley Biathlon | E16: 12:14:30
A17: MY | B17: 30 | C17: Husain, Kamran | D17: Maine Winter Sports Center / Stratton Mountain School | E17: 12:15:00
A18: MY | B18: 31 | C18: Zink, Simon | D18: Steamboat Springs Winter Sport Club | E18: 12:15:30
A19: MJ | B19: 32 | C19: Halligan, Brian | D19: Maine Winter Sports Center | E19: 12:16:00
A20: MY | B20: 33 | C20: Forshey, Matthew | D20: Saratoga Biathlon/HURT | E20: 12:16:30
A21: MY | B21: 34 | C21: Carroll, Peter | D21: Auburn Ski Club | E21: 12:17:00
A22: MY | B22: 35 | C22: Johnson, Cody | D22: Maine Winter Sports Center | E22: 12:17:30
A23: MJ | B23: 36 | C23: Rosholt, Warren | D23: MN National Guard | E23: 12:18:00
A24: MY | B24: 37 | C24: Cooper, Travis | D24: Skiku Biathlon | E24: 12:18:30
A25: MJ | B25: 38 | C25: Garberich, Gerrit | D25: Nisswa NW/CSS/MN Biathlon | E25: 12:19:00
A26: MY | B26: 39 | C26: Cervenka, Vasek | D26: Mt.Itasca /MN Biathlon | E26: 12:19:30
A27: MY | B27: 40 | C27: Larson, Alex | D27: LNR/MN Biathlon | E27: 12:20:00
A28: MY | B28: 41 | C28: Viren, Hans | D28: Mt.Itasca /MN Biathlon | E28: 12:20:30
A29: MJ | B29: 42 | C29: Nakada, Tadhg | D29: National Guard Biathlon | E29: 12:21:00
A30: MY | B30: 43 | C30: Christiansen, Cam | D30: Nisswa NW/MN Biathlon | E30: 12:21:30
A31: MY | B31: 44 | C31: Zabell, Sam | D31: Auburn Ski Club | E31: 12:22:00
A32: MY | B32: 45 | C32: White, Lewis | D32: LNR/MN Biathlon | E32: 12:22:30
A33: MJ | B33: 46 | C33: Ellingson, Jakob | D33: Mt. Itasca/MN Biathlon | E33: 12:23:00
A34: MY | B34: 47 | C34: Hanson, Anders | D34: Craftsbury Nordic | E34: 12:23:30
A35: MY | B35: 48 | C35: Cyr, Brendan | D35: Maine Winter Sports Center | E35: 12:24:00
A36: MY | B36: 49 | C36: Baird, Lochlan | D36: Mt.Itasca /MN Biathlon | E36: 12:24:30
A37: MY | B37: 50 | C37: Pearson, Jake | D37: Casper Mountain Biathlon Club | E37: 12:25:00
A38: MY | B38: 51 | C38: Jarvinen, Henry | D38: LNR/MN Biathlon | E38: 12:25:30
C40: Short Break
A42: WY | B42: 55 | C42: Ellingson, Siena | D42: Mt.Itasca/MN Biathlon | E42: 12:30:30
A43: WY | B43: 56 | C43: Putnam, Elise | D43: National Guard Biathlon | E43: 12:31:00
A44: WY | B44: 57 | C44: Von Imhof, Liesel | D44: Skiku Biathlon | E44: 12:31:30
A45: WY | B45: 58 | C45: Kautzer, Amanda | D45: LNR/MN Biathlon | E45: 12:32:00
A46: WY | B46: 59 | C46: Waichler, Claire | D46: Methow Valley Biathlon | E46: 12:32:30
A47: WY | B47: 60 | C47: Peterson, Rachel | D47: MN Biathlon | E47: 12:33:00
A48: WY | B48: 61 | C48: Gilliland, Grace | D48: Skiku Biathlon | E48: 12:33:30
A49: WJ | B49: 62 | C49: Paluszek, Mikaela | D49: Maine Winter Sport Center | E49: 12:34:00
A50: WY | B50: 63 | C50: Parsons, Victoria | D50: Skiku Biathlon | E50: 12:34:30
A51: WY | B51: 64 | C51: Jehle, Annie | D51: Team Altius | E51: 12:35:00
A52: WY | B52: 65 | C52: Streinz, Hannah | D52: Maine Winter Sport Center | E52: 12:35:30
A53: WY | B53: 66 | C53: Wood, Jade | D53: Skiku Biathlon | E53: 12:36:00
A54: WY | B54: 67 | C54: Schoening, Maria | D54: MN Biathlon | E54: 12:36:30
A55: WY | B55: 68 | C55: Levins, Chloe | D55: Mountain Top Nordic Ski Club | E55: 12:37:00
A56: MM | B56: 69 | C56: Gangi, Frank | D56: MN National Guard | E56: 12:37:30
A57: MM | B57: 70 | C57: Peterson, Paul | D57: MN National Guard | E57: 12:38:00
K64: =IF(ISBLANK(G64),"",G64+H64+I64+J64) -> 
K65: =IF(ISBLANK(G65),"",G65+H65+I65+J65) -> 
K66: =IF(ISBLANK(G66),"",G66+H66+I66+J66) -> 
B164: M
B165: MJ
B166: MM
B167: MS
B168: MV
B169: MY
B170: B
B171: W
B172: WJ
B173: WM
B174: WS
B175: WV
B176: WY
B177: G

Sheet Men
A1: =COVER!A1 -> US Youth/Junior World Championships Trials
A2: =COVER!A2 -> 2014-12-30
A3: MEN'S 10 km SPRINT COMPETITION
A4: =COVER!A4 -> FINAL RESULTS
A5: =COVER!A5 -> Coleraine, MN | O5: =COVER!N5 -> Mt. Itasca Biathlon Association
A7: Pos. | B7: StNr | C7: Name | D7: Club/Team/Hometown, State | E7: Start | F7: Ski Time | G7: P | H7: P | I7: S | J7: S | K7: T | L7: Final | M7: Behind | N7: NA-Pts | O7: % | P7: StNr | Q7: FINISH | S7: Points
A8: 1 | B8: 21 | C8: Roberts, Wynn | D8: MN National Guard | E8: 12:10:30 | G8: 2 | J8: 1 | K8: =IF(ISBLANK(G8),"",G8+H8+I8+J8) -> 3 | L8: =IF(Q8>0,Q8-E8,"") -> 00:18:25.500 | M8: =IF(Q8>0,L8-L$8,"") -> 00:00:00 | N8: =IF(Q8>0,S8,"") -> 50 | O8: =IF(Q8>0,2-(L8/((L$8+L$9+L$10)/3)),"") -> 104.35% | P8: =B8 -> 21 | Q8: 12:28:55.500 | S8: 50
A9: 2 | B9: 23 | C9: Shommer, Paul | D9: Continental Ski/USBA D Team | E9: 12:11:30 | G9: 2 | J9: 2 | K9: =IF(ISBLANK(G9),"",G9+H9+I9+J9) -> 4 | L9: =IF(Q9>0,Q9-E9,"") -> 00:18:57.100 | M9: =IF(Q9>0,L9-L$8,"") -> 00:00:31.600 | N9: =IF(Q9>0,S9,"") -> 46 | O9: =IF(Q9>0,2-(L9/((L$8+L$9+L$10)/3)),"") -> 101.62% | P9: =B9 -> 23 | Q9: 12:30:27.100 | S9: 46
A10: 3 | B10: 22 | C10: Dalberg, Jacob | D10: MN National Guard | E10: 12:11:00 | G10: 2 | J10: 3 | K10: =IF(ISBLANK(G10),"",G10+H10+I10+J10) -> 5 | L10: =IF(Q10>0,Q10-E10,"") -> 00:20:24.700 | M10: =IF(Q10>0,L10-L$8,"") -> 00:01:59.200 | N10: =IF(Q10>0,S10,"") -> 43 | O10: =IF(Q10>0,2-(L10/((L$8+L$9+L$10)/3)),"") -> 94.04% | P10: =B10 -> 22 | Q10: 12:31:24.700 | S10: 43
A11: 4 | K11: =IF(ISBLANK(G11),"",G11+H11+I11+J11) ->  | L11: =IF(Q11>0,Q11-E11,"") ->  | M11: =IF(Q11>0,L11-L$8,"") ->  | N11: =IF(Q11>0,S11,"") ->  | O11: =IF(Q11>0,2-(L11/((L$8+L$9+L$10)/3)),"") ->  | P11: =B11 -> 0 | S11: 40
A12: 5 | P12: 0 | S12: 37
A13: 6 | P13: 0 | S13: 34
A14: 7 | P14: 0 | S14: 32
A15: 8 | P15: 0 | S15: 30
A16: 9 | P16: 0 | S16: 28
A17: 10 | P17: 0 | S17: 26
A18: 11 | P18: 0 | S18: 24
A19: 12 | P19: 0 | S19: 22
A20: 13 | P20: 0 | S20: 20
A21: 14 | P21: 0 | S21: 18
A22: 15 | P22: 0 | S22: 16
P23: 0 | S23: 15
P24: 0 | S24: 14
P25: 0 | S25: 13
P26: 0 | S26: 12
P27: 0 | S27: 11
S28: 10 | V28: `
S29: 9
S30: 8
S31: 7
S32: 6
S33: 5
S34: 4
S35: 3
S36: 2
S37: 1

Sheet Comb Men
A1: =COVER!A1 -> US Youth/Junior World Championships Trials
A2: =COVER!A2 -> 2014-12-30
A3: COMBINED JR & YOUTH MEN'S 7.5 km SPRINT COMPETITION
A4: =COVER!A4 -> FINAL RESULTS
A5: =COVER!A5 -> Coleraine, MN | O5: =COVER!N5 -> Mt. Itasca Biathlon Association
A7: Pos. | B7: StNr | C7: Name | D7: Club/Team/Hometown, State | E7: Start | F7: Ski Time | G7: P | H7: P | I7: S | J7: S | K7: T | L7: Final | M7: Behind | N7: NA-Pts | O7: % | P7: StNr | Q7: FINISH | S7: Points
A8: 1 | B8: 32 | C8: Halligan, Brian | D8: Maine Winter Sports Center | E8: 12:16:00 | G8: 3 | J8: 0 | K8: =IF(ISBLANK(G8),"",G8+H8+I8+J8) -> 3 | L8: =IF(Q8>0,Q8-E8,"") -> 00:18:13.600 | M8: =IF(Q8>0,L8-L$8,"") -> 00:00:00 | N8: =IF(Q8>0,S8,"") -> 50 | O8: =IF(Q8>0,2-(L8/((L$8+L$9+L$10)/3)),"") -> 103.64% | P8: =B8 -> 32 | Q8: 12:34:13.600 | S8: 50
A9: 2 | B9: 43 | C9: Christiansen, Cam | D9: Nisswa NW/MN Biathlon | E9: 12:21:30 | G9: 0 | J9: 1 | K9: =IF(ISBLANK(G9),"",G9+H9+I9+J9) -> 1 | L9: =IF(Q9>0,Q9-E9,"") -> 00:19:04.400 | M9: =IF(Q9>0,L9-L$8,"") -> 00:00:50.800 | N9: =IF(Q9>0,S9,"") -> 46 | O9: =IF(Q9>0,2-(L9/((L$8+L$9+L$10)/3)),"") -> 99.16% | P9: =B9 -> 43 | Q9: 12:40:34.400 | S9: 46
A10: 3 | B10: 48 | C10: Cyr, Brendan | D10: Maine Winter Sports Center | E10: 12:24:00 | G10: 1 | J10: 1 | K10: =IF(ISBLANK(G10),"",G10+H10+I10+J10) -> 2 | L10: =IF(Q10>0,Q10-E10,"") -> 00:19:26.700 | M10: =IF(Q10>0,L10-L$8,"") -> 00:01:13.100 | N10: =IF(Q10>0,S10,"") -> 43 | O10: =IF(Q10>0,2-(L10/((L$8+L$9+L$10)/3)),"") -> 97.20% | P10: =B10 -> 48 | Q10: 12:43:26.700 | S10: 43
A11: 4 | B11: 46 | C11: Ellingson, Jakob | D11: Mt. Itasca/MN Biathlon | E11: 12:23:00 | G11: 4 | J11: 1 | K11: =IF(ISBLANK(G11),"",G11+H11+I11+J11) -> 5 | L11: =IF(Q11>0,Q11-E11,"") -> 00:19:35 | M11: =IF(Q11>0,L11-L$8,"") -> 00:01:21.400 | N11: =IF(Q11>0,S11,"") -> 40 | O11: =IF(Q11>0,2-(L11/((L$8+L$9+L$10)/3)),"") -> 96.47% | P11: =B11 -> 46 | Q11: 12:42:35 | S11: 40
A12: 5 | B12: 29 | C12: Everett, Paul | D12: Methow Valley Biathlon | E12: 12:14:30 | G12: 2 | J12: 2 | K12: =IF(ISBLANK(G12),"",G12+H12+I12+J12) -> 4 | L12: =IF(Q12>0,Q12-E12,"") -> 00:19:43.200 | M12: =IF(Q12>0,L12-L$8,"") -> 00:01:29.600 | N12: =IF(Q12>0,S12,"") -> 37 | O12: =IF(Q12>0,2-(L12/((L$8+L$9+L$10)/3)),"") -> 95.74% | P12: =B12 -> 29 | Q12: 12:34:13.200 | S12: 37
A13: 6 | B13: 44 | C13: Zabell, Sam | D13: Auburn Ski Club | E13: 12:22:00 | G13: 1 | J13: 1 | K13: =IF(ISBLANK(G13),"",G13+H13+I13+J13) -> 2 | L13: =IF(Q13>0,Q13-E13,"") -> 00:20:09 | M13: =IF(Q13>0,L13-L$8,"") -> 00:01:55.400 | N13: =IF(Q13>0,S13,"") -> 34 | O13: =IF(Q13>0,2-(L13/((L$8+L$9+L$10)/3)),"") -> 93.47% | P13: =B13 -> 44 | Q13: 12:42:09 | S13: 34
A14: 7 | B14: 26 | C14: Kilby, Alexander | D14: Skiku Biathlon | E14: 12:13:00 | G14: 2 | J14: 1 | K14: =IF(ISBLANK(G14),"",G14+H14+I14+J14) -> 3 | L14: =IF(Q14>0,Q14-E14,"") -> 00:20:33.600 | M14: =IF(Q14>0,L14-L$8,"") -> 00:02:20 | N14: =IF(Q14>0,S14,"") -> 32 | O14: =IF(Q14>0,2-(L14/((L$8+L$9+L$10)/3)),"") -> 91.30% | P14: =B14 -> 26 | Q14: 12:33:33.600 | S14: 32
A15: 8 | B15: 24 | C15: Wonders, Hunter | D15: Skiku Biathlon | E15: 12:12:00 | G15: 3 | J15: 3 | K15: =IF(ISBLANK(G15),"",G15+H15+I15+J15) -> 6 | L15: =IF(Q15>0,Q15-E15,"") -> 00:20:45.500 | M15: =IF(Q15>0,L15-L$8,"") -> 00:02:31.900 | N15: =IF(Q15>0,S15,"") -> 30 | O15: =IF(Q15>0,2-(L15/((L$8+L$9+L$10)/3)),"") -> 90.25% | P15: =B15 -> 24 | Q15: 12:32:45.500 | S15: 30
A16: 9 | B16: 25 | C16: Baker, Zean | D16: Nisswa NW/MN Biathlon | E16: 12:12:30 | G16: 3 | J16: 1 | K16: =IF(ISBLANK(G16),"",G16+H16+I16+J16) -> 4 | L16: =IF(Q16>0,Q16-E16,"") -> 00:21:01.300 | M16: =IF(Q16>0,L16-L$8,"") -> 00:02:47.700 | N16: =IF(Q16>0,S16,"") -> 28 | O16: =IF(Q16>0,2-(L16/((L$8+L$9+L$10)/3)),"") -> 88.86% | P16: =B16 -> 25 | Q16: 12:33:31.300 | S16: 28
A17: 10 | B17: 28 | C17: McElroy, Jordan | D17: National Guard Biathlon | E17: 12:14:00 | G17: 1 | J17: 5 | K17: =IF(ISBLANK(G17),"",G17+H17+I17+J17) -> 6 | L17: =IF(Q17>0,Q17-E17,"") -> 00:21:09.400 | M17: =IF(Q17>0,L17-L$8,"") -> 00:02:55.800 | N17: =IF(Q17>0,S17,"") -> 26 | O17: =IF(Q17>0,2-(L17/((L$8+L$9+L$10)/3)),"") -> 88.15% | P17: =B17 -> 28 | Q17: 12:35:09.400 | S17: 26
A18: 11 | B18: 33 | C18: Forshey, Matthew | D18: Saratoga Biathlon/HURT | E18: 12:16:30 | G18: 2 | J18: 3 | K18: =IF(ISBLANK(G18),"",G18+H18+I18+J18) -> 5 | L18: =IF(Q18>0,Q18-E18,"") -> 00:21:20.100 | M18: =IF(Q18>0,L18-L$8,"") -> 00:03:06.500 | N18: =IF(Q18>0,S18,"") -> 24 | O18: =IF(Q18>0,2-(L18/((L$8+L$9+L$10)/3)),"") -> 87.21% | P18: =B18 -> 33 | Q18: 12:37:50.100 | S18: 24
A19: 12 | B19: 38 | C19: Garberich, Gerrit | D19: Nisswa NW/CSS/MN Biathlon | E19: 12:19:00 | G19: 2 | J19: 4 | K19: =IF(ISBLANK(G19),"",G19+H19+I19+J19) -> 6 | L19: =IF(Q19>0,Q19-E19,"") -> 00:21:21.700 | M19: =IF(Q19>0,L19-L$8,"") -> 00:03:08.100 | N19: =IF(Q19>0,S19,"") -> 22 | O19: =IF(Q19>0,2-(L19/((L$8+L$9+L$10)/3)),"") -> 87.06% | P19: =B19 -> 38 | Q19: 12:40:21.700 | S19: 22
A20: 13 | B20: 51 | C20: Jarvinen, Henry | D20: LNR/MN Biathlon | E20: 12:25:30 | G20: 3 | J20: 0 | K20: =IF(ISBLANK(G20),"",G20+H20+I20+J20) -> 3 | L20: =IF(Q20>0,Q20-E20,"") -> 00:21:23.500 | M20: =IF(Q20>0,L20-L$8,"") -> 00:03:09.900 | N20: =IF(Q20>0,S20,"") -> 20 | O20: =IF(Q20>0,2-(L20/((L$8+L$9+L$10)/3)),"") -> 86.91% | P20: =B20 -> 51 | Q20: 12:46:53.500 | S20: 20
A21: 14 | B21: 35 | C21: Johnson, Cody | D21: Maine Winter Sports Center | E21: 12:17:30 | G21: 3 | J21: 2 | K21: =IF(ISBLANK(G21),"",G21+H21+I21+J21) -> 5 | L21: =IF(Q21>0,Q21-E21,"") -> 00:21:29 | M21: =IF(Q21>0,L21-L$8,"") -> 00:03:15.400 | N21: =IF(Q21>0,S21,"") -> 18 | O21: =IF(Q21>0,2-(L21/((L$8+L$9+L$10)/3)),"") -> 86.42% | P21: =B21 -> 35 | Q21: 12:38:59 | S21: 18
A22: 15 | B22: 30 | C22: Husain, Kamran | D22: Maine Winter Sports Center / Stratton Mountain School | E22: 12:15:00 | G22: 5 | J22: 4 | K22: =IF(ISBLANK(G22),"",G22+H22+I22+J22) -> 9 | L22: =IF(Q22>0,Q22-E22,"") -> 00:21:32.800 | M22: =IF(Q22>0,L22-L$8,"") -> 00:03:19.200 | N22: =IF(Q22>0,S22,"") -> 16 | O22: =IF(Q22>0,2-(L22/((L$8+L$9+L$10)/3)),"") -> 86.09% | P22: =B22 -> 30 | Q22: 12:36:32.800 | S22: 16
A23: 16 | B23: 37 | C23: Cooper, Travis | D23: Skiku Biathlon | E23: 12:18:30 | G23: 4 | J23: 1 | K23: =IF(ISBLANK(G23),"",G23+H23+I23+J23) -> 5 | L23: =IF(Q23>0,Q23-E23,"") -> 00:21:35.800 | M23: =IF(Q23>0,L23-L$8,"") -> 00:03:22.200 | N23: =IF(Q23>0,S23,"") -> 15 | O23: =IF(Q23>0,2-(L23/((L$8+L$9+L$10)/3)),"") -> 85.82% | P23: =B23 -> 37 | Q23: 12:40:05.800 | S23: 15
A24: 17 | B24: 42 | C24: Nakada, Tadhg | D24: National Guard Biathlon | E24: 12:21:00 | G24: 1 | J24: 4 | K24: =IF(ISBLANK(G24),"",G24+H24+I24+J24) -> 5 | L24: =IF(Q24>0,Q24-E24,"") -> 00:22:40.300 | M24: =IF(Q24>0,L24-L$8,"") -> 00:04:26.700 | N24: =IF(Q24>0,S24,"") -> 14 | O24: =IF(Q24>0,2-(L24/((L$8+L$9+L$10)/3)),"") -> 80.14% | P24: =B24 -> 42 | Q24: 12:43:40.300 | S24: 14
A25: 18 | B25: 47 | C25: Hanson, Anders | D25: Craftsbury Nordic | E25: 12:23:30 | G25: 3 | J25: 4 | K25: =IF(ISBLANK(G25),"",G25+H25+I25+J25) -> 7 | L25: =IF(Q25>0,Q25-E25,"") -> 00:23:11.600 | M25: =IF(Q25>0,L25-L$8,"") -> 00:04:58 | N25: =IF(Q25>0,S25,"") -> 13 | O25: =IF(Q25>0,2-(L25/((L$8+L$9+L$10)/3)),"") -> 77.38% | P25: =B25 -> 47 | Q25: 12:46:41.600 | S25: 13
A26: 19 | B26: 50 | C26: Pearson, Jake | D26: Casper Mountain Biathlon Club | E26: 12:25:00 | G26: 3 | J26: 1 | K26: =IF(ISBLANK(G26),"",G26+H26+I26+J26) -> 4 | L26: =IF(Q26>0,Q26-E26,"") -> 00:23:43.700 | M26: =IF(Q26>0,L26-L$8,"") -> 00:05:30.100 | N26: =IF(Q26>0,S26,"") -> 12 | O26: =IF(Q26>0,2-(L26/((L$8+L$9+L$10)/3)),"") -> 74.55% | P26: =B26 -> 50 | Q26: 12:48:43.700 | S26: 12
A27: 20 | B27: 34 | C27: Carroll, Peter | D27: Auburn Ski Club | E27: 12:17:00 | G27: 3 | J27: 4 | K27: =IF(ISBLANK(G27),"",G27+H27+I27+J27) -> 7 | L27: =IF(Q27>0,Q27-E27,"") -> 00:23:55.100 | M27: =IF(Q27>0,L27-L$8,"") -> 00:05:41.500 | N27: =IF(Q27>0,S27,"") -> 11 | O27: =IF(Q27>0,2-(L27/((L$8+L$9+L$10)/3)),"") -> 73.55% | P27: =B27 -> 34 | Q27: 12:40:55.100 | S27: 11
A28: 21 | B28: 31 | C28: Zink, Simon | D28: Steamboat Springs Winter Sport Club | E28: 12:15:30 | G28: 2 | J28: 4 | K28: =IF(ISBLANK(G28),"",G28+H28+I28+J28) -> 6 | L28: =IF(Q28>0,Q28-E28,"") -> 00:23:55.500 | M28: =IF(Q28>0,L28-L$8,"") -> 00:05:41.900 | N28: =IF(Q28>0,S28,"") -> 10 | O28: =IF(Q28>0,2-(L28/((L$8+L$9+L$10)/3)),"") -> 73.51% | P28: =B28 -> 31 | Q28: 12:39:25.500 | S28: 10 | V28: `
A29: 22 | B29: 45 | C29: White, Lewis | D29: LNR/MN Biathlon | E29: 12:22:30 | G29: 2 | J29: 3 | K29: =IF(ISBLANK(G29),"",G29+H29+I29+J29) -> 5 | L29: =IF(Q29>0,Q29-E29,"") -> 00:24:08.800 | M29: =IF(Q29>0,L29-L$8,"") -> 00:05:55.200 | N29: =IF(Q29>0,S29,"") -> 9 | O29: =IF(Q29>0,2-(L29/((L$8+L$9+L$10)/3)),"") -> 72.34% | P29: =B29 -> 45 | Q29: 12:46:38.800 | S29: 9
A30: 23 | B30: 40 | C30: Larson, Alex | D30: LNR/MN Biathlon | E30: 12:20:00 | G30: 3 | J30: 4 | K30: =IF(ISBLANK(G30),"",G30+H30+I30+J30) -> 7 | L30: =IF(Q30>0,Q30-E30,"") -> 00:24:27.400 | M30: =IF(Q30>0,L30-L$8,"") -> 00:06:13.800 | N30: =IF(Q30>0,S30,"") -> 8 | O30: =IF(Q30>0,2-(L30/((L$8+L$9+L$10)/3)),"") -> 70.70% | P30: =B30 -> 40 | Q30: 12:44:27.400 | S30: 8
A31: 24 | B31: 41 | C31: Viren, Hans | D31: Mt.Itasca /MN Biathlon | E31: 12:20:30 | G31: 2 | J31: 2 | K31: =IF(ISBLANK(G31),"",G31+H31+I31+J31) -> 4 | L31: =IF(Q31>0,Q31-E31,"") -> 00:24:53.500 | M31: =IF(Q31>0,L31-L$8,"") -> 00:06:39.900 | N31: =IF(Q31>0,S31,"") -> 7 | O31: =IF(Q31>0,2-(L31/((L$8+L$9+L$10)/3)),"") -> 68.40% | P31: =B31 -> 41 | Q31: 12:45:23.500 | S31: 7
A32: 25 | B32: 36 | C32: Rosholt, Warren | D32: MN National Guard | E32: 12:18:00 | G32: 3 | J32: 4 | K32: =IF(ISBLANK(G32),"",G32+H32+I32+J32) -> 7 | L32: =IF(Q32>0,Q32-E32,"") -> 00:25:26.100 | M32: =IF(Q32>0,L32-L$8,"") -> 00:07:12.500 | N32: =IF(Q32>0,S32,"") -> 6 | O32: =IF(Q32>0,2-(L32/((L$8+L$9+L$10)/3)),"") -> 65.53% | P32: =B32 -> 36 | Q32: 12:43:26.100 | S32: 6
A33: 26 | B33: 39 | C33: Cervenka, Vasek | D33: Mt.Itasca /MN Biathlon | E33: 12:19:30 | K33: =IF(ISBLANK(G33),"",G33+H33+I33+J33) ->  | L33: DNF | M33: =IF(Q33>0,L33-L$8,"") ->  | N33: =IF(Q33>0,S33,"") -> 5 | O33: =IF(Q33>0,2-(L33/((L$8+L$9+L$10)/3)),"") ->  | P33: =B33 -> 39 | Q33: DNF | S33: 5
A34: 27 | B34: 27 | C34: Kuzio, Nathanael | D34: EABC | E34: 12:13:30 | K34: =IF(ISBLANK(G34),"",G34+H34+I34+J34) ->  | L34: DNS | M34: =IF(Q34>0,L34-L$8,"") ->  | N34: =IF(Q34>0,S34,"") -> 4 | O34: =IF(Q34>0,2-(L34/((L$8+L$9+L$10)/3)),"") ->  | P34: =B34 -> 27 | Q34: DNS | S34: 4
A35: 28 | B35: 49 | C35: Baird, Lochlan | D35: Mt.Itasca /MN Biathlon | E35: 12:24:30 | K35: =IF(ISBLANK(G35),"",G35+H35+I35+J35) ->  | L35: DNS | M35: =IF(Q35>0,L35-L$8,"") ->  | N35: =IF(Q35>0,S35,"") -> 3 | O35: =IF(Q35>0,2-(L35/((L$8+L$9+L$10)/3)),"") ->  | P35: =B35 -> 49 | Q35: DNS | S35: 3
S36: 2
S37: 1

Sheet Jr Men
A1: =COVER!A1 -> US Youth/Junior World Championships Trials
A2: =COVER!A2 -> 2014-12-30
A3: Jr. MEN'S 10 km SPRINT COMPETITION
A4: =COVER!A4 -> FINAL RESULTS
A5: =COVER!A5 -> Coleraine, MN | O5: =COVER!N5 -> Mt. Itasca Biathlon Association
A7: Pos. | B7: StNr | C7: Name | D7: Club/Team/Hometown, State | E7: Start | F7: Ski Time | G7: P | H7: P | I7: S | J7: S | K7: T | L7: Final | M7: Behind | N7: NA-Pts | O7: % | P7: StNr | Q7: FINISH | S7: Points
A8: 1 | B8: 32 | C8: Halligan, Brian | D8: Maine Winter Sports Center | E8: 12:16:00 | G8: 3 | J8: 0 | K8: =IF(ISBLANK(G8),"",G8+H8+I8+J8) -> 3 | L8: =IF(Q8>0,Q8-E8,"") -> 00:18:13.600 | M8: =IF(Q8>0,L8-L$8,"") -> 00:00:00 | N8: =IF(Q8>0,S8,"") -> 50 | O8: =IF(Q8>0,2-(L8/((L$8+L$9+L$10)/3)),"") -> 107.06% | P8: =B8 -> 32 | Q8: 12:34:13.600 | S8: 50
A9: 2 | B9: 46 | C9: Ellingson, Jakob | D9: Mt. Itasca/MN Biathlon | E9: 12:23:00 | G9: 4 | J9: 1 | K9: =IF(ISBLANK(G9),"",G9+H9+I9+J9) -> 5 | L9: =IF(Q9>0,Q9-E9,"") -> 00:19:35 | M9: =IF(Q9>0,L9-L$8,"") -> 00:01:21.400 | N9: =IF(Q9>0,S9,"") -> 46 | O9: =IF(Q9>0,2-(L9/((L$8+L$9+L$10)/3)),"") -> 100.14% | P9: =B9 -> 46 | Q9: 12:42:35 | S9: 46
A10: 3 | B10: 25 | C10: Baker, Zean | D10: Nisswa NW/MN Biathlon | E10: 12:12:30 | G10: 3 | J10: 1 | K10: =IF(ISBLANK(G10),"",G10+H10+I10+J10) -> 4 | L10: =IF(Q10>0,Q10-E10,"") -> 00:21:01.300 | M10: =IF(Q10>0,L10-L$8,"") -> 00:02:47.700 | N10: =IF(Q10>0,S10,"") -> 43 | O10: =IF(Q10>0,2-(L10/((L$8+L$9+L$10)/3)),"") -> 92.80% | P10: =B10 -> 25 | Q10: 12:33:31.300 | S10: 43
A11: 4 | B11: 28 | C11: McElroy, Jordan | D11: National Guard Biathlon | E11: 12:14:00 | G11: 1 | J11: 5 | K11: =IF(ISBLANK(G11),"",G11+H11+I11+J11) -> 6 | L11: =IF(Q11>0,Q11-E11,"") -> 00:21:09.400 | M11: =IF(Q11>0,L11-L$8,"") -> 00:02:55.800 | N11: =IF(Q11>0,S11,"") -> 40 | O11: =IF(Q11>0,2-(L11/((L$8+L$9+L$10)/3)),"") -> 92.12% | P11: =B11 -> 28 | Q11: 12:35:09.400 | S11: 40
A12: 5 | B12: 38 | C12: Garberich, Gerrit | D12: Nisswa NW/CSS/MN Biathlon | E12: 12:19:00 | G12: 2 | J12: 4 | K12: =IF(ISBLANK(G12),"",G12+H12+I12+J12) -> 6 | L12: =IF(Q12>0,Q12-E12,"") -> 00:21:21.700 | M12: =IF(Q12>0,L12-L$8,"") -> 00:03:08.100 | N12: =IF(Q12>0,S12,"") -> 37 | O12: =IF(Q12>0,2-(L12/((L$8+L$9+L$10)/3)),"") -> 91.07% | P12: =B12 -> 38 | Q12: 12:40:21.700 | S12: 37
A13: 6 | B13: 42 | C13: Nakada, Tadhg | D13: National Guard Biathlon | E13: 12:21:00 | G13: 1 | J13: 4 | K13: =IF(ISBLANK(G13),"",G13+H13+I13+J13) -> 5 | L13: =IF(Q13>0,Q13-E13,"") -> 00:22:40.300 | M13: =IF(Q13>0,L13-L$8,"") -> 00:04:26.700 | N13: =IF(Q13>0,S13,"") -> 34 | O13: =IF(Q13>0,2-(L13/((L$8+L$9+L$10)/3)),"") -> 84.39% | P13: =B13 -> 42 | Q13: 12:43:40.300 | S13: 34
A14: 7 | B14: 36 | C14: Rosholt, Warren | D14: MN National Guard | E14: 12:18:00 | G14: 3 | J14: 4 | K14: =IF(ISBLANK(G14),"",G14+H14+I14+J14) -> 7 | L14: =IF(Q14>0,Q14-E14,"") -> 00:25:26.100 | M14: =IF(Q14>0,L14-L$8,"") -> 00:07:12.500 | N14: =IF(Q14>0,S14,"") -> 32 | O14: =IF(Q14>0,2-(L14/((L$8+L$9+L$10)/3)),"") -> 70.30% | P14: =B14 -> 36 | Q14: 12:43:26.100 | S14: 32
A15: 8 | K15: =IF(ISBLANK(G15),"",G15+H15+I15+J15) ->  | L15: =IF(Q15>0,Q15-E15,"") ->  | M15: =IF(Q15>0,L15-L$8,"") ->  | N15: =IF(Q15>0,S15,"") ->  | O15: =IF(Q15>0,2-(L15/((L$8+L$9+L$10)/3)),"") ->  | P15: =B15 -> 0 | S15: 30
K16: =IF(ISBLANK(G16),"",G16+H16+I16+J16) ->  | L16: =IF(Q16>0,Q16-E16,"") ->  | M16: =IF(Q16>0,L16-L$8,"") ->  | N16: =IF(Q16>0,S16,"") ->  | O16: =IF(Q16>0,2-(L16/((L$8+L$9+L$10)/3)),"") ->  | P16: =B16 -> 0 | S16: 28
F17: =IF(Q17>0,Q17-E17,"") ->  | K17: =IF(ISBLANK(G17),"",G17+H17+I17+J17) ->  | P17: 0 | S17: 26
F18: =IF(Q18>0,Q18-E18,"") ->  | K18: =IF(ISBLANK(G18),"",G18+H18+I18+J18) ->  | P18: 0 | S18: 24
P19: 0 | S19: 22
P20: 0 | S20: 20
P21: 0 | S21: 18
P22: 0 | S22: 16
P23: 0 | S23: 15
P24: 0 | S24: 14
P25: 0 | S25: 13
P26: 0 | S26: 12
P27: 0 | S27: 11
S28: 10
S29: 9
S30: 8
S31: 7
S32: 6
S33: 5
S34: 4
S35: 3
S36: 2
S37: 1

Sheet Youth Men
A1: =COVER!A1 -> US Youth/Junior World Championships Trials
A2: =COVER!A2 -> 2014-12-30
A3: YOUTH MEN'S 7.5 km SPRINT COMPETITION
A4: =COVER!A4 -> FINAL RESULTS
A5: =COVER!A5 -> Coleraine, MN | O5: =COVER!N5 -> Mt. Itasca Biathlon Association
A7: Pos. | B7: StNr | C7: Name | D7: Club/Team/Hometown, State | E7: Start | F7: Ski Time | G7: P | H7: P | I7: S | J7: S | K7: T | L7: Final | M7: Behind | N7: NA-Pts | O7: % | P7: StNr | Q7: FINISH | S7: Points
A8: 1 | B8: 43 | C8: Christiansen, Cam | D8: Nisswa NW/MN Biathlon | E8: 12:21:30 | G8: 0 | J8: 1 | K8: =IF(ISBLANK(G8),"",G8+H8+I8+J8) -> 1 | L8: =IF(Q8>0,Q8-E8,"") -> 00:19:04.400 | M8: =IF(Q8>0,L8-L$8,"") -> 00:00:00 | N8: =IF(Q8>0,S8,"") -> 50 | O8: =IF(Q8>0,2-(L8/((L$8+L$9+L$10)/3)),"") -> 101.75% | P8: =B8 -> 43 | Q8: 12:40:34.400 | S8: 50
A9: 2 | B9: 48 | C9: Cyr, Brendan | D9: Maine Winter Sports Center | E9: 12:24:00 | G9: 1 | J9: 1 | K9: =IF(ISBLANK(G9),"",G9+H9+I9+J9) -> 2 | L9: =IF(Q9>0,Q9-E9,"") -> 00:19:26.700 | M9: =IF(Q9>0,L9-L$8,"") -> 00:00:22.300 | N9: =IF(Q9>0,S9,"") -> 46 | O9: =IF(Q9>0,2-(L9/((L$8+L$9+L$10)/3)),"") -> 99.83% | P9: =B9 -> 48 | Q9: 12:43:26.700 | S9: 46
A10: 3 | B10: 29 | C10: Everett, Paul | D10: Methow Valley Biathlon | E10: 12:14:30 | G10: 2 | J10: 2 | K10: =IF(ISBLANK(G10),"",G10+H10+I10+J10) -> 4 | L10: =IF(Q10>0,Q10-E10,"") -> 00:19:43.200 | M10: =IF(Q10>0,L10-L$8,"") -> 00:00:38.800 | N10: =IF(Q10>0,S10,"") -> 43 | O10: =IF(Q10>0,2-(L10/((L$8+L$9+L$10)/3)),"") -> 98.42% | P10: =B10 -> 29 | Q10: 12:34:13.200 | S10: 43
A11: 4 | B11: 44 | C11: Zabell, Sam | D11: Auburn Ski Club | E11: 12:22:00 | G11: 1 | J11: 1 | K11: =IF(ISBLANK(G11),"",G11+H11+I11+J11) -> 2 | L11: =IF(Q11>0,Q11-E11,"") -> 00:20:09 | M11: =IF(Q11>0,L11-L$8,"") -> 00:01:04.600 | N11: =IF(Q11>0,S11,"") -> 40 | O11: =IF(Q11>0,2-(L11/((L$8+L$9+L$10)/3)),"") -> 96.20% | P11: =B11 -> 44 | Q11: 12:42:09 | S11: 40
A12: 5 | B12: 26 | C12: Kilby, Alexander | D12: Skiku Biathlon | E12: 12:13:00 | G12: 2 | J12: 1 | K12: =IF(ISBLANK(G12),"",G12+H12+I12+J12) -> 3 | L12: =IF(Q12>0,Q12-E12,"") -> 00:20:33.600 | M12: =IF(Q12>0,L12-L$8,"") -> 00:01:29.200 | N12: =IF(Q12>0,S12,"") -> 37 | O12: =IF(Q12>0,2-(L12/((L$8+L$9+L$10)/3)),"") -> 94.09% | P12: =B12 -> 26 | Q12: 12:33:33.600 | S12: 37
A13: 6 | B13: 24 | C13: Wonders, Hunter | D13: Skiku Biathlon | E13: 12:12:00 | G13: 3 | J13: 3 | K13: =IF(ISBLANK(G13),"",G13+H13+I13+J13) -> 6 | L13: =IF(Q13>0,Q13-E13,"") -> 00:20:45.500 | M13: =IF(Q13>0,L13-L$8,"") -> 00:01:41.100 | N13: =IF(Q13>0,S13,"") -> 34 | O13: =IF(Q13>0,2-(L13/((L$8+L$9+L$10)/3)),"") -> 93.07% | P13: =B13 -> 24 | Q13: 12:32:45.500 | S13: 34
A14: 7 | B14: 33 | C14: Forshey, Matthew | D14: Saratoga Biathlon/HURT | E14: 12:16:30 | G14: 2 | J14: 3 | K14: =IF(ISBLANK(G14),"",G14+H14+I14+J14) -> 5 | L14: =IF(Q14>0,Q14-E14,"") -> 00:21:20.100 | M14: =IF(Q14>0,L14-L$8,"") -> 00:02:15.700 | N14: =IF(Q14>0,S14,"") -> 32 | O14: =IF(Q14>0,2-(L14/((L$8+L$9+L$10)/3)),"") -> 90.10% | P14: =B14 -> 33 | Q14: 12:37:50.100 | S14: 32
A15: 8 | B15: 51 | C15: Jarvinen, Henry | D15: LNR/MN Biathlon | E15: 12:25:30 | G15: 3 | J15: 0 | K15: =IF(ISBLANK(G15),"",G15+H15+I15+J15) -> 3 | L15: =IF(Q15>0,Q15-E15,"") -> 00:21:23.500 | M15: =IF(Q15>0,L15-L$8,"") -> 00:02:19.100 | N15: =IF(Q15>0,S15,"") -> 30 | O15: =IF(Q15>0,2-(L15/((L$8+L$9+L$10)/3)),"") -> 89.81% | P15: =B15 -> 51 | Q15: 12:46:53.500 | S15: 30
A16: 9 | B16: 35 | C16: Johnson, Cody | D16: Maine Winter Sports Center | E16: 12:17:30 | G16: 3 | J16: 2 | K16: =IF(ISBLANK(G16),"",G16+H16+I16+J16) -> 5 | L16: =IF(Q16>0,Q16-E16,"") -> 00:21:29 | M16: =IF(Q16>0,L16-L$8,"") -> 00:02:24.600 | N16: =IF(Q16>0,S16,"") -> 28 | O16: =IF(Q16>0,2-(L16/((L$8+L$9+L$10)/3)),"") -> 89.33% | P16: =B16 -> 35 | Q16: 12:38:59 | S16: 28
A17: 10 | B17: 30 | C17: Husain, Kamran | D17: Maine Winter Sports Center / Stratton Mountain School | E17: 12:15:00 | G17: 5 | J17: 4 | K17: =IF(ISBLANK(G17),"",G17+H17+I17+J17) -> 9 | L17: =IF(Q17>0,Q17-E17,"") -> 00:21:32.800 | M17: =IF(Q17>0,L17-L$8,"") -> 00:02:28.400 | N17: =IF(Q17>0,S17,"") -> 26 | O17: =IF(Q17>0,2-(L17/((L$8+L$9+L$10)/3)),"") -> 89.01% | P17: =B17 -> 30 | Q17: 12:36:32.800 | S17: 26
A18: 11 | B18: 37 | C18: Cooper, Travis | D18: Skiku Biathlon | E18: 12:18:30 | G18: 4 | J18: 1 | K18: =IF(ISBLANK(G18),"",G18+H18+I18+J18) -> 5 | L18: =IF(Q18>0,Q18-E18,"") -> 00:21:35.800 | M18: =IF(Q18>0,L18-L$8,"") -> 00:02:31.400 | N18: =IF(Q18>0,S18,"") -> 24 | O18: =IF(Q18>0,2-(L18/((L$8+L$9+L$10)/3)),"") -> 88.75% | P18: =B18 -> 37 | Q18: 12:40:05.800 | S18: 24
A19: 12 | B19: 47 | C19: Hanson, Anders | D19: Craftsbury Nordic | E19: 12:23:30 | G19: 3 | J19: 4 | K19: =IF(ISBLANK(G19),"",G19+H19+I19+J19) -> 7 | L19: =IF(Q19>0,Q19-E19,"") -> 00:23:11.600 | M19: =IF(Q19>0,L19-L$8,"") -> 00:04:07.200 | N19: =IF(Q19>0,S19,"") -> 22 | O19: =IF(Q19>0,2-(L19/((L$8+L$9+L$10)/3)),"") -> 80.53% | P19: =B19 -> 47 | Q19: 12:46:41.600 | S19: 22
A20: 13 | B20: 50 | C20: Pearson, Jake | D20: Casper Mountain Biathlon Club | E20: 12:25:00 | G20: 3 | J20: 1 | K20: =IF(ISBLANK(G20),"",G20+H20+I20+J20) -> 4 | L20: =IF(Q20>0,Q20-E20,"") -> 00:23:43.700 | M20: =IF(Q20>0,L20-L$8,"") -> 00:04:39.300 | N20: =IF(Q20>0,S20,"") -> 20 | O20: =IF(Q20>0,2-(L20/((L$8+L$9+L$10)/3)),"") -> 77.77% | P20: =B20 -> 50 | Q20: 12:48:43.700 | S20: 20
A21: 14 | B21: 34 | C21: Carroll, Peter | D21: Auburn Ski Club | E21: 12:17:00 | G21: 3 | J21: 4 | K21: =IF(ISBLANK(G21),"",G21+H21+I21+J21) -> 7 | L21: =IF(Q21>0,Q21-E21,"") -> 00:23:55.100 | M21: =IF(Q21>0,L21-L$8,"") -> 00:04:50.700 | N21: =IF(Q21>0,S21,"") -> 18 | O21: =IF(Q21>0,2-(L21/((L$8+L$9+L$10)/3)),"") -> 76.79% | P21: =B21 -> 34 | Q21: 12:40:55.100 | S21: 18
A22: 15 | B22: 31 | C22: Zink, Simon | D22: Steamboat Springs Winter Sport Club | E22: 12:15:30 | G22: 2 | J22: 4 | K22: =IF(ISBLANK(G22),"",G22+H22+I22+J22) -> 6 | L22: =IF(Q22>0,Q22-E22,"") -> 00:23:55.500 | M22: =IF(Q22>0,L22-L$8,"") -> 00:04:51.100 | N22: =IF(Q22>0,S22,"") -> 16 | O22: =IF(Q22>0,2-(L22/((L$8+L$9+L$10)/3)),"") -> 76.76% | P22: =B22 -> 31 | Q22: 12:39:25.500 | S22: 16
A23: 16 | B23: 45 | C23: White, Lewis | D23: LNR/MN Biathlon | E23: 12:22:30 | G23: 2 | J23: 3 | K23: =IF(ISBLANK(G23),"",G23+H23+I23+J23) -> 5 | L23: =IF(Q23>0,Q23-E23,"") -> 00:24:08.800 | M23: =IF(Q23>0,L23-L$8,"") -> 00:05:04.400 | N23: =IF(Q23>0,S23,"") -> 15 | O23: =IF(Q23>0,2-(L23/((L$8+L$9+L$10)/3)),"") -> 75.61% | P23: =B23 -> 45 | Q23: 12:46:38.800 | S23: 15
A24: 17 | B24: 40 | C24: Larson, Alex | D24: LNR/MN Biathlon | E24: 12:20:00 | G24: 3 | J24: 4 | K24: =IF(ISBLANK(G24),"",G24+H24+I24+J24) -> 7 | L24: =IF(Q24>0,Q24-E24,"") -> 00:24:27.400 | M24: =IF(Q24>0,L24-L$8,"") -> 00:05:23 | N24: =IF(Q24>0,S24,"") -> 14 | O24: =IF(Q24>0,2-(L24/((L$8+L$9+L$10)/3)),"") -> 74.02% | P24: =B24 -> 40 | Q24: 12:44:27.400 | S24: 14
A25: 18 | B25: 41 | C25: Viren, Hans | D25: Mt.Itasca /MN Biathlon | E25: 12:20:30 | G25: 2 | J25: 2 | K25: =IF(ISBLANK(G25),"",G25+H25+I25+J25) -> 4 | L25: =IF(Q25>0,Q25-E25,"") -> 00:24:53.500 | M25: =IF(Q25>0,L25-L$8,"") -> 00:05:49.100 | N25: =IF(Q25>0,S25,"") -> 13 | O25: =IF(Q25>0,2-(L25/((L$8+L$9+L$10)/3)),"") -> 71.78% | P25: =B25 -> 41 | Q25: 12:45:23.500 | S25: 13
A26: 19 | B26: 39 | C26: Cervenka, Vasek | D26: Mt.Itasca /MN Biathlon | E26: 12:19:30 | K26: =IF(ISBLANK(G26),"",G26+H26+I26+J26) ->  | L26: DNF | M26: =IF(Q26>0,L26-L$8,"") ->  | N26: =IF(Q26>0,S26,"") -> 12 | O26: =IF(Q26>0,2-(L26/((L$8+L$9+L$10)/3)),"") ->  | P26: =B26 -> 39 | Q26: DNF | S26: 12
A27: 20 | B27: 27 | C27: Kuzio, Nathanael | D27: EABC | E27: 12:13:30 | K27: =IF(ISBLANK(G27),"",G27+H27+I27+J27) ->  | L27: DNS | M27: =IF(Q27>0,L27-L$8,"") ->  | N27: =IF(Q27>0,S27,"") -> 11 | O27: =IF(Q27>0,2-(L27/((L$8+L$9+L$10)/3)),"") ->  | P27: =B27 -> 27 | Q27: DNS | S27: 11
A28: 21 | B28: 49 | C28: Baird, Lochlan | D28: Mt.Itasca /MN Biathlon | E28: 12:24:30 | K28: =IF(ISBLANK(G28),"",G28+H28+I28+J28) ->  | L28: DNS | M28: =IF(Q28>0,L28-L$8,"") ->  | N28: =IF(Q28>0,S28,"") -> 10 | O28: =IF(Q28>0,2-(L28/((L$8+L$9+L$10)/3)),"") ->  | P28: =B28 -> 49 | Q28: DNS | S28: 10
K29: =IF(ISBLANK(G29),"",G29+H29+I29+J29) ->  | L29: =IF(Q29>0,Q29-E29,"") ->  | M29: =IF(Q29>0,L29-L$8,"") ->  | N29: =IF(Q29>0,S29,"") ->  | O29: =IF(Q29>0,2-(L29/((L$8+L$9+L$10)/3)),"") ->  | S29: 9
S30: 8
S31: 7
S32: 6
S33: 5
S34: 4
S35: 3
S36: 2
S37: 1

Sheet Comb Wom
A1: =COVER!A1 -> US Youth/Junior World Championships Trials
A2: =COVER!A2 -> 2014-12-30
A3: COMBINED JR & YOUTH WOMEN'S 6 km SPRINT COMPETITION
A4: =COVER!A4 -> FINAL RESULTS
A5: =COVER!A5 -> Coleraine, MN | O5: =COVER!N5 -> Mt. Itasca Biathlon Association
A7: Pos. | B7: StNr | C7: Name | D7: Club/Team/Hometown, State | E7: Start | F7: Ski Time | G7: P | H7: P | I7: S | J7: S | K7: T | L7: Final | M7: Behind | N7: NA-Pts | O7: % | P7: StNr | Q7: FINISH | S7: Points
A8: 1 | B8: 65 | C8: Streinz, Hannah | D8: Maine Winter Sport Center | E8: 12:35:30 | G8: 1 | J8: 1 | K8: =IF(ISBLANK(G8),"",G8+H8+I8+J8) -> 2 | L8: =IF(Q8>0,Q8-E8,"") -> 00:20:53.500 | M8: =IF(Q8>0,L8-L$8,"") -> 00:00:00 | N8: =IF(Q8>0,S8,"") -> 50 | O8: =IF(Q8>0,2-(L8/((L$8+L$9+L$10)/3)),"") -> 101.06% | P8: =B8 -> 65 | Q8: 12:56:23.500 | S8: 50
A9: 2 | B9: 55 | C9: Ellingson, Siena | D9: Mt.Itasca/MN Biathlon | E9: 12:30:30 | G9: 1 | J9: 3 | K9: =IF(ISBLANK(G9),"",G9+H9+I9+J9) -> 4 | L9: =IF(Q9>0,Q9-E9,"") -> 00:21:10.600 | M9: =IF(Q9>0,L9-L$8,"") -> 00:00:17.100 | N9: =IF(Q9>0,S9,"") -> 46 | O9: =IF(Q9>0,2-(L9/((L$8+L$9+L$10)/3)),"") -> 99.71% | P9: =B9 -> 55 | Q9: 12:51:40.600 | S9: 46
A10: 3 | B10: 62 | C10: Paluszek, Mikaela | D10: Maine Winter Sport Center | E10: 12:34:00 | G10: 2 | J10: 2 | K10: =IF(ISBLANK(G10),"",G10+H10+I10+J10) -> 4 | L10: =IF(Q10>0,Q10-E10,"") -> 00:21:16.800 | M10: =IF(Q10>0,L10-L$8,"") -> 00:00:23.300 | N10: =IF(Q10>0,S10,"") -> 43 | O10: =IF(Q10>0,2-(L10/((L$8+L$9+L$10)/3)),"") -> 99.22% | P10: =B10 -> 62 | Q10: 12:55:16.800 | S10: 43
A11: 4 | B11: 58 | C11: Kautzer, Amanda | D11: LNR/MN Biathlon | E11: 12:32:00 | G11: 3 | J11: 1 | K11: =IF(ISBLANK(G11),"",G11+H11+I11+J11) -> 4 | L11: =IF(Q11>0,Q11-E11,"") -> 00:21:29.400 | M11: =IF(Q11>0,L11-L$8,"") -> 00:00:35.900 | N11: =IF(Q11>0,S11,"") -> 40 | O11: =IF(Q11>0,2-(L11/((L$8+L$9+L$10)/3)),"") -> 98.23% | P11: =B11 -> 58 | Q11: 12:53:29.400 | S11: 40
A12: 5 | B12: 66 | C12: Wood, Jade | D12: Skiku Biathlon | E12: 12:36:00 | G12: 2 | J12: 1 | K12: =IF(ISBLANK(G12),"",G12+H12+I12+J12) -> 3 | L12: =IF(Q12>0,Q12-E12,"") -> 00:22:35.600 | M12: =IF(Q12>0,L12-L$8,"") -> 00:01:42.100 | N12: =IF(Q12>0,S12,"") -> 37 | O12: =IF(Q12>0,2-(L12/((L$8+L$9+L$10)/3)),"") -> 93.00% | P12: =B12 -> 66 | Q12: 12:58:35.600 | S12: 37
A13: 6 | B13: 56 | C13: Putnam, Elise | D13: National Guard Biathlon | E13: 12:31:00 | G13: 0 | J13: 4 | K13: =IF(ISBLANK(G13),"",G13+H13+I13+J13) -> 4 | L13: =IF(Q13>0,Q13-E13,"") -> 00:22:56.800 | M13: =IF(Q13>0,L13-L$8,"") -> 00:02:03.300 | N13: =IF(Q13>0,S13,"") -> 34 | O13: =IF(Q13>0,2-(L13/((L$8+L$9+L$10)/3)),"") -> 91.33% | P13: =B13 -> 56 | Q13: 12:53:56.800 | S13: 34
A14: 7 | B14: 57 | C14: Von Imhof, Liesel | D14: Skiku Biathlon | E14: 12:31:30 | G14: 2 | J14: 2 | K14: =IF(ISBLANK(G14),"",G14+H14+I14+J14) -> 4 | L14: =IF(Q14>0,Q14-E14,"") -> 00:23:08.100 | M14: =IF(Q14>0,L14-L$8,"") -> 00:02:14.600 | N14: =IF(Q14>0,S14,"") -> 32 | O14: =IF(Q14>0,2-(L14/((L$8+L$9+L$10)/3)),"") -> 90.44% | P14: =B14 -> 57 | Q14: 12:54:38.100 | S14: 32
A15: 8 | B15: 60 | C15: Peterson, Rachel | D15: MN Biathlon | E15: 12:33:00 | G15: 3 | J15: 1 | K15: =IF(ISBLANK(G15),"",G15+H15+I15+J15) -> 4 | L15: =IF(Q15>0,Q15-E15,"") -> 00:23:09.100 | M15: =IF(Q15>0,L15-L$8,"") -> 00:02:15.600 | N15: =IF(Q15>0,S15,"") -> 30 | O15: =IF(Q15>0,2-(L15/((L$8+L$9+L$10)/3)),"") -> 90.36% | P15: =B15 -> 60 | Q15: 12:56:09.100 | S15: 30
A16: 9 | B16: 59 | C16: Waichler, Claire | D16: Methow Valley Biathlon | E16: 12:32:30 | G16: 3 | J16: 2 | K16: =IF(ISBLANK(G16),"",G16+H16+I16+J16) -> 5 | L16: =IF(Q16>0,Q16-E16,"") -> 00:23:43.500 | M16: =IF(Q16>0,L16-L$8,"") -> 00:02:50 | N16: =IF(Q16>0,S16,"") -> 28 | O16: =IF(Q16>0,2-(L16/((L$8+L$9+L$10)/3)),"") -> 87.65% | P16: =B16 -> 59 | Q16: 12:56:13.500 | S16: 28
A17: 10 | B17: 61 | C17: Gilliland, Grace | D17: Skiku Biathlon | E17: 12:33:30 | G17: 2 | J17: 3 | K17: =IF(ISBLANK(G17),"",G17+H17+I17+J17) -> 5 | L17: =IF(Q17>0,Q17-E17,"") -> 00:24:50.500 | M17: =IF(Q17>0,L17-L$8,"") -> 00:03:57 | N17: =IF(Q17>0,S17,"") -> 26 | O17: =IF(Q17>0,2-(L17/((L$8+L$9+L$10)/3)),"") -> 82.36% | P17: =B17 -> 61 | Q17: 12:58:20.500 | S17: 26
A18: 11 | B18: 64 | C18: Jehle, Annie | D18: Team Altius | E18: 12:35:00 | G18: 3 | J18: 5 | K18: =IF(ISBLANK(G18),"",G18+H18+I18+J18) -> 8 | L18: =IF(Q18>0,Q18-E18,"") -> 00:25:46 | M18: =IF(Q18>0,L18-L$8,"") -> 00:04:52.500 | N18: =IF(Q18>0,S18,"") -> 24 | O18: =IF(Q18>0,2-(L18/((L$8+L$9+L$10)/3)),"") -> 77.98% | P18: =B18 -> 64 | Q18: 13:00:46 | S18: 24
A19: 12 | B19: 67 | C19: Schoening, Maria | D19: MN Biathlon | E19: 12:36:30 | G19: 4 | J19: 3 | K19: =IF(ISBLANK(G19),"",G19+H19+I19+J19) -> 7 | L19: =IF(Q19>0,Q19-E19,"") -> 00:25:49.600 | M19: =IF(Q19>0,L19-L$8,"") -> 00:04:56.100 | N19: =IF(Q19>0,S19,"") -> 22 | O19: =IF(Q19>0,2-(L19/((L$8+L$9+L$10)/3)),"") -> 77.69% | P19: =B19 -> 67 | Q19: 13:02:19.600 | S19: 22
A20: 13 | B20: 63 | C20: Parsons, Victoria | D20: Skiku Biathlon | E20: 12:34:30 | G20: 1 | J20: 2 | K20: =IF(ISBLANK(G20),"",G20+H20+I20+J20) -> 3 | L20: =IF(Q20>0,Q20-E20,"") -> 00:27:00.600 | M20: =IF(Q20>0,L20-L$8,"") -> 00:06:07.100 | N20: =IF(Q20>0,S20,"") -> 20 | O20: =IF(Q20>0,2-(L20/((L$8+L$9+L$10)/3)),"") -> 72.09% | P20: =B20 -> 63 | Q20: 13:01:30.600 | S20: 20
A21: 14 | B21: 68 | C21: Levins, Chloe | D21: Mountain Top Nordic Ski Club | E21: 12:37:00 | K21: =IF(ISBLANK(G21),"",G21+H21+I21+J21) ->  | L21: DNS | M21: =IF(Q21>0,L21-L$8,"") ->  | N21: =IF(Q21>0,S21,"") -> 18 | O21: =IF(Q21>0,2-(L21/((L$8+L$9+L$10)/3)),"") ->  | P21: =B21 -> 68 | Q21: DNS | S21: 18
L22: =IF(Q22>0,Q22-E22,"") ->  | M22: =IF(Q22>0,L22-L$8,"") ->  | N22: =IF(Q22>0,S22,"") ->  | O22: =IF(Q22>0,2-(L22/((L$8+L$9+L$10)/3)),"") ->  | P22: =B22 -> 0 | S22: 16
P23: 0 | S23: 15
P24: 0 | S24: 14
P25: 0 | S25: 13
P26: 0 | S26: 12
P27: 0 | S27: 11
S28: 10
S29: 9
S30: 8
S31: 7
S32: 6
S33: 5
S34: 4
S35: 3
S36: 2
S37: 1

Sheet Jr Women
A1: =COVER!A1 -> US Youth/Junior World Championships Trials
A2: =COVER!A2 -> 2014-12-30
A3: Jr. WOMEN'S 6 km SPRINT COMPETITION
A4: =COVER!A4 -> FINAL RESULTS
A5: =COVER!A5 -> Coleraine, MN | O5: =COVER!N5 -> Mt. Itasca Biathlon Association
A7: Pos. | B7: StNr | C7: Name | D7: Club/Team/Hometown, State | E7: Start | F7: Ski Time | G7: P | H7: P | I7: S | J7: S | K7: T | L7: Final | M7: Behind | N7: NA-Pts | O7: % | P7: StNr | Q7: FINISH | S7: Points
A8: 1 | B8: 62 | C8: Paluszek, Mikaela | D8: Maine Winter Sport Center | E8: 12:34:00 | G8: 2 | J8: 2 | K8: =IF(ISBLANK(G8),"",G8+H8+I8+J8) -> 4 | L8: =IF(Q8>0,Q8-E8,"") -> 00:21:16.800 | M8: =IF(Q8>0,L8-L$8,"") -> 00:00:00 | N8: =IF(Q8>0,S8,"") -> 50 | O8: =IF(Q8>0,2-(L8/((L$8+L$9+L$10)/3)),"") ->  | P8: =B8 -> 62 | Q8: 12:55:16.800 | S8: 50
A9: 2 | K9: =IF(ISBLANK(G9),"",G9+H9+I9+J9) ->  | L9: =IF(Q9>0,Q9-E9,"") ->  | M9: =IF(Q9>0,L9-L$8,"") ->  | N9: =IF(Q9>0,S9,"") ->  | O9: =IF(Q9>0,2-(L9/((L$8+L$9+L$10)/3)),"") ->  | P9: =B9 -> 0 | S9: 46
A10: 3 | K10: =IF(ISBLANK(G10),"",G10+H10+I10+J10) ->  | L10: =IF(Q10>0,Q10-E10,"") ->  | M10: =IF(Q10>0,L10-L$8,"") ->  | N10: =IF(Q10>0,S10,"") ->  | O10: =IF(Q10>0,2-(L10/((L$8+L$9+L$10)/3)),"") ->  | P10: =B10 -> 0 | S10: 43
A11: 4 | K11: =IF(ISBLANK(G11),"",G11+H11+I11+J11) ->  | L11: =IF(Q11>0,Q11-E11,"") ->  | M11: =IF(Q11>0,L11-L$8,"") ->  | N11: =IF(Q11>0,S11,"") ->  | O11: =IF(Q11>0,2-(L11/((L$8+L$9+L$10)/3)),"") ->  | P11: =B11 -> 0 | S11: 40
K12: =IF(ISBLANK(G12),"",G12+H12+I12+J12) ->  | L12: =IF(Q12>0,Q12-E12,"") ->  | M12: =IF(Q12>0,L12-L$8,"") ->  | N12: =IF(Q12>0,S12,"") ->  | O12: =IF(Q12>0,2-(L12/((L$8+L$9+L$10)/3)),"") ->  | P12: =B12 -> 0 | S12: 37
P13: 0 | S13: 34
P14: 0 | S14: 32
P15: 0 | S15: 30
P16: 0 | S16: 28
P17: 0 | S17: 26
P18: 0 | S18: 24
P19: 0 | S19: 22
P20: 0 | S20: 20
P21: 0 | S21: 18
P22: 0 | S22: 16
P23: 0 | S23: 15
P24: 0 | S24: 14
P25: 0 | S25: 13
P26: 0 | S26: 12
P27: 0 | S27: 11
S28: 10
S29: 9
S30: 8
S31: 7
S32: 6
S33: 5
S34: 4
S35: 3
S36: 2
S37: 1

Sheet Youth Women
A1: =COVER!A1 -> US Youth/Junior World Championships Trials
A2: =COVER!A2 -> 2014-12-30
A3: YOUTH WOMEN'S 6 km SPRINT COMPETITION
A4: =COVER!A4 -> FINAL RESULTS
A5: =COVER!A5 -> Coleraine, MN | O5: =COVER!N5 -> Mt. Itasca Biathlon Association
A7: Pos. | B7: StNr | C7: Name | D7: Club/Team/Hometown, State | E7: Start | F7: Ski Time | G7: P | H7: P | I7: S | J7: S | K7: T | L7: Final | M7: Behind | N7: NA-Pts | O7: % | P7: StNr | Q7: FINISH | S7: Points
A8: 1 | B8: 65 | C8: Streinz, Hannah | D8: Maine Winter Sport Center | E8: 12:35:30 | G8: 1 | J8: 1 | K8: =IF(ISBLANK(G8),"",G8+H8+I8+J8) -> 2 | L8: =IF(Q8>0,Q8-E8,"") -> 00:20:53.500 | M8: =IF(Q8>0,L8-L$8,"") -> 00:00:00 | N8: =IF(Q8>0,S8,"") -> 50 | O8: =IF(Q8>0,2-(L8/((L$8+L$9+L$10)/3)),"") -> 101.39% | P8: =B8 -> 65 | Q8: 12:56:23.500 | S8: 50
A9: 2 | B9: 55 | C9: Ellingson, Siena | D9: Mt.Itasca/MN Biathlon | E9: 12:30:30 | G9: 1 | J9: 3 | K9: =IF(ISBLANK(G9),"",G9+H9+I9+J9) -> 4 | L9: =IF(Q9>0,Q9-E9,"") -> 00:21:10.600 | M9: =IF(Q9>0,L9-L$8,"") -> 00:00:17.100 | N9: =IF(Q9>0,S9,"") -> 46 | O9: =IF(Q9>0,2-(L9/((L$8+L$9+L$10)/3)),"") -> 100.04% | P9: =B9 -> 55 | Q9: 12:51:40.600 | S9: 46
A10: 3 | B10: 58 | C10: Kautzer, Amanda | D10: LNR/MN Biathlon | E10: 12:32:00 | G10: 3 | J10: 1 | K10: =IF(ISBLANK(G10),"",G10+H10+I10+J10) -> 4 | L10: =IF(Q10>0,Q10-E10,"") -> 00:21:29.400 | M10: =IF(Q10>0,L10-L$8,"") -> 00:00:35.900 | N10: =IF(Q10>0,S10,"") -> 43 | O10: =IF(Q10>0,2-(L10/((L$8+L$9+L$10)/3)),"") -> 98.57% | P10: =B10 -> 58 | Q10: 12:53:29.400 | S10: 43
A11: 4 | B11: 66 | C11: Wood, Jade | D11: Skiku Biathlon | E11: 12:36:00 | G11: 2 | J11: 1 | K11: =IF(ISBLANK(G11),"",G11+H11+I11+J11) -> 3 | L11: =IF(Q11>0,Q11-E11,"") -> 00:22:35.600 | M11: =IF(Q11>0,L11-L$8,"") -> 00:01:42.100 | N11: =IF(Q11>0,S11,"") -> 40 | O11: =IF(Q11>0,2-(L11/((L$8+L$9+L$10)/3)),"") -> 93.36% | P11: =B11 -> 66 | Q11: 12:58:35.600 | S11: 40
A12: 5 | B12: 56 | C12: Putnam, Elise | D12: National Guard Biathlon | E12: 12:31:00 | G12: 0 | J12: 4 | K12: =IF(ISBLANK(G12),"",G12+H12+I12+J12) -> 4 | L12: =IF(Q12>0,Q12-E12,"") -> 00:22:56.800 | M12: =IF(Q12>0,L12-L$8,"") -> 00:02:03.300 | N12: =IF(Q12>0,S12,"") -> 37 | O12: =IF(Q12>0,2-(L12/((L$8+L$9+L$10)/3)),"") -> 91.69% | P12: =B12 -> 56 | Q12: 12:53:56.800 | S12: 37
A13: 6 | B13: 57 | C13: Von Imhof, Liesel | D13: Skiku Biathlon | E13: 12:31:30 | G13: 2 | J13: 2 | K13: =IF(ISBLANK(G13),"",G13+H13+I13+J13) -> 4 | L13: =IF(Q13>0,Q13-E13,"") -> 00:23:08.100 | M13: =IF(Q13>0,L13-L$8,"") -> 00:02:14.600 | N13: =IF(Q13>0,S13,"") -> 34 | O13: =IF(Q13>0,2-(L13/((L$8+L$9+L$10)/3)),"") -> 90.80% | P13: =B13 -> 57 | Q13: 12:54:38.100 | S13: 34
A14: 7 | B14: 60 | C14: Peterson, Rachel | D14: MN Biathlon | E14: 12:33:00 | G14: 3 | J14: 1 | K14: =IF(ISBLANK(G14),"",G14+H14+I14+J14) -> 4 | L14: =IF(Q14>0,Q14-E14,"") -> 00:23:09.100 | M14: =IF(Q14>0,L14-L$8,"") -> 00:02:15.600 | N14: =IF(Q14>0,S14,"") -> 32 | O14: =IF(Q14>0,2-(L14/((L$8+L$9+L$10)/3)),"") -> 90.72% | P14: =B14 -> 60 | Q14: 12:56:09.100 | S14: 32
A15: 8 | B15: 59 | C15: Waichler, Claire | D15: Methow Valley Biathlon | E15: 12:32:30 | G15: 3 | J15: 2 | K15: =IF(ISBLANK(G15),"",G15+H15+I15+J15) -> 5 | L15: =IF(Q15>0,Q15-E15,"") -> 00:23:43.500 | M15: =IF(Q15>0,L15-L$8,"") -> 00:02:50 | N15: =IF(Q15>0,S15,"") -> 30 | O15: =IF(Q15>0,2-(L15/((L$8+L$9+L$10)/3)),"") -> 88.02% | P15: =B15 -> 59 | Q15: 12:56:13.500 | S15: 30
A16: 9 | B16: 61 | C16: Gilliland, Grace | D16: Skiku Biathlon | E16: 12:33:30 | G16: 2 | J16: 3 | K16: =IF(ISBLANK(G16),"",G16+H16+I16+J16) -> 5 | L16: =IF(Q16>0,Q16-E16,"") -> 00:24:50.500 | M16: =IF(Q16>0,L16-L$8,"") -> 00:03:57 | N16: =IF(Q16>0,S16,"") -> 28 | O16: =IF(Q16>0,2-(L16/((L$8+L$9+L$10)/3)),"") -> 82.75% | P16: =B16 -> 61 | Q16: 12:58:20.500 | S16: 28
A17: 10 | B17: 64 | C17: Jehle, Annie | D17: Team Altius | E17: 12:35:00 | G17: 3 | J17: 5 | K17: =IF(ISBLANK(G17),"",G17+H17+I17+J17) -> 8 | L17: =IF(Q17>0,Q17-E17,"") -> 00:25:46 | M17: =IF(Q17>0,L17-L$8,"") -> 00:04:52.500 | N17: =IF(Q17>0,S17,"") -> 26 | O17: =IF(Q17>0,2-(L17/((L$8+L$9+L$10)/3)),"") -> 78.38% | P17: =B17 -> 64 | Q17: 13:00:46 | S17: 26
A18: 11 | B18: 67 | C18: Schoening, Maria | D18: MN Biathlon | E18: 12:36:30 | G18: 4 | J18: 3 | K18: =IF(ISBLANK(G18),"",G18+H18+I18+J18) -> 7 | L18: =IF(Q18>0,Q18-E18,"") -> 00:25:49.600 | M18: =IF(Q18>0,L18-L$8,"") -> 00:04:56.100 | N18: =IF(Q18>0,S18,"") -> 24 | O18: =IF(Q18>0,2-(L18/((L$8+L$9+L$10)/3)),"") -> 78.10% | P18: =B18 -> 67 | Q18: 13:02:19.600 | S18: 24
A19: 12 | B19: 63 | C19: Parsons, Victoria | D19: Skiku Biathlon | E19: 12:34:30 | G19: 1 | J19: 2 | K19: =IF(ISBLANK(G19),"",G19+H19+I19+J19) -> 3 | L19: =IF(Q19>0,Q19-E19,"") -> 00:27:00.600 | M19: =IF(Q19>0,L19-L$8,"") -> 00:06:07.100 | N19: =IF(Q19>0,S19,"") -> 22 | O19: =IF(Q19>0,2-(L19/((L$8+L$9+L$10)/3)),"") -> 72.51% | P19: =B19 -> 63 | Q19: 13:01:30.600 | S19: 22
A20: 13 | B20: 68 | C20: Levins, Chloe | D20: Mountain Top Nordic Ski Club | E20: 12:37:00 | K20: =IF(ISBLANK(G20),"",G20+H20+I20+J20) ->  | L20: DNS | M20: =IF(Q20>0,L20-L$8,"") ->  | N20: =IF(Q20>0,S20,"") -> 20 | O20: =IF(Q20>0,2-(L20/((L$8+L$9+L$10)/3)),"") ->  | P20: =B20 -> 68 | Q20: DNS | S20: 20
L21: =IF(Q21>0,Q21-E21,"") ->  | M21: =IF(Q21>0,L21-L$8,"") ->  | N21: =IF(Q21>0,S21,"") ->  | O21: =IF(Q21>0,2-(L21/((L$8+L$9+L$10)/3)),"") ->  | P21: =B21 -> 0 | S21: 18
P22: 0 | S22: 16
P23: 0 | S23: 15
P24: 0 | S24: 14
P25: 0 | S25: 13
P26: 0 | S26: 12
P27: 0 | S27: 11
S28: 10
S29: 9
S30: 8
S31: 7
S32: 6
S33: 5
S34: 4
S35: 3
S36: 2
S37: 1

Sheet Men Master
A1: =COVER!A1 -> US Youth/Junior World Championships Trials
A2: =COVER!A2 -> 2014-12-30
A3: MASTER MEN'S 7.5 km SPRINT COMPETITION
A4: =COVER!A4 -> FINAL RESULTS
A5: =COVER!A5 -> Coleraine, MN | O5: =COVER!N5 -> Mt. Itasca Biathlon Association
C6: 30-39 Years Old
A7: Pos. | B7: StNr | C7: Name | D7: Club/Team/Hometown, State | E7: Start | F7: Ski Time | G7: P | H7: P | I7: S | J7: S | K7: T | L7: Final | M7: Behind | N7: NA-Pts | O7: % | P7: StNr | Q7: FINISH | S7: Points
A8: 1 | B8: 69 | C8: Gangi, Frank | D8: MN National Guard | E8: 12:37:30 | G8: 3 | J8: 3 | K8: =IF(ISBLANK(G8),"",G8+H8+I8+J8) -> 6 | L8: =IF(Q8>0,Q8-E8,"") -> 00:26:37.700 | M8: =IF(Q8>0,L8-L$8,"") -> 00:00:00 | N8: =IF(Q8>0,S8,"") -> 50 | O8: =IF(Q8>0,2-(L8/((L$8+L$9+L$10)/3)),"") ->  | P8: =B8 -> 69 | Q8: 13:04:07.700 | S8: 50
A9: 2 | B9: 70 | C9: Peterson, Paul | D9: MN National Guard | E9: 12:38:00 | K9: =IF(ISBLANK(G9),"",G9+H9+I9+J9) ->  | L9: DNS | N9: 46 | P9: 70 | Q9: DNS | S9: 46
A10: 3 | P10: 0 | S10: 43
A11: 4 | P11: 0 | S11: 40
A12: 5 | P12: 0 | S12: 37
A13: 6 | P13: 0 | S13: 34
A14: 7 | P14: 0 | S14: 32
A15: 8 | P15: 0 | S15: 30
A16: 9 | P16: 0 | S16: 28
A17: 10 | P17: 0 | S17: 26
P18: 0 | S18: 24
L19: =IF(Q19>0,Q19-E19,"") ->  | M19: =IF(Q19>0,L19-L$8,"") ->  | N19: =IF(Q19>0,S19,"") ->  | O19: =IF(Q19>0,2-(L19/((L$8+L$9+L$10)/3)),"") ->  | P19: 0 | S19: 22
P20: 0 | S20: 20
P21: 0 | S21: 18
P22: 0 | S22: 16
P23: 0 | S23: 15
P24: 0 | S24: 14
P25: 0 | S25: 13
P26: 0 | S26: 12
P27: 0 | S27: 11
S28: 10 | V28: `
S29: 9
S30: 8
S31: 7
S32: 6
S33: 5
S34: 4
S35: 3
S36: 2
S37: 1

Sheet Womens Master
A1: =COVER!A1 -> US Youth/Junior World Championships Trials
A2: =COVER!A2 -> 2014-12-30
A3: MASTER WOMEN'S 6 km SPRINT COMPETITION
A4: =COVER!A4 -> FINAL RESULTS
A5: =COVER!A5 -> Coleraine, MN | O5: =COVER!N5 -> Mt. Itasca Biathlon Association
C6: 30-39 Years Old
A7: Pos. | B7: StNr | C7: Name | D7: Club/Team/Hometown, State | E7: Start | F7: Ski Time | G7: P | H7: P | I7: S | J7: S | K7: T | L7: Final | M7: Behind | N7: NA-Pts | O7: % | P7: StNr | Q7: FINISH | S7: Points
A8: 1 | K8: =IF(ISBLANK(G8),"",G8+H8+I8+J8) ->  | L8: =IF(Q8>0,Q8-E8,"") ->  | M8: =IF(Q8>0,L8-L$8,"") ->  | N8: =IF(Q8>0,S8,"") ->  | O8: =IF(Q8>0,2-(L8/((L$8+L$9+L$10)/3)),"") ->  | P8: =B8 -> 0 | S8: 50
A9: 2 | K9: =IF(ISBLANK(G9),"",G9+H9+I9+J9) ->  | L9: =IF(Q9>0,Q9-E9,"") ->  | M9: =IF(Q9>0,L9-L$8,"") ->  | N9: =IF(Q9>0,S9,"") ->  | O9: =IF(Q9>0,2-(L9/((L$8+L$9+L$10)/3)),"") ->  | P9: =B9 -> 0 | S9: 46
L10: =IF(Q10>0,Q10-E10,"") ->  | M10: =IF(Q10>0,L10-L$8,"") ->  | N10: =IF(Q10>0,S10,"") ->  | O10: =IF(Q10>0,2-(L10/((L$8+L$9+L$10)/3)),"") ->  | P10: =B10 -> 0 | S10: 43
P11: 0 | S11: 40
P12: 0 | S12: 37
P13: 0 | S13: 34
P14: 0 | S14: 32
P15: 0 | S15: 30
P16: 0 | S16: 28
P17: 0 | S17: 26
P18: 0 | S18: 24
P19: 0 | S19: 22
P20: 0 | S20: 20
P21: 0 | S21: 18
P22: 0 | S22: 16
P23: 0 | S23: 15
P24: 0 | S24: 14
P25: 0 | S25: 13
P26: 0 | S26: 12
P27: 0 | S27: 11
S28: 10
S29: 9
S30: 8
S31: 7
S32: 6
S33: 5
S34: 4
S35: 3
S36: 2
S37: 1

Sheet Womens Sr
A1: =COVER!A1 -> US Youth/Junior World Championships Trials
A2: =COVER!A2 -> 2014-12-30
A3: SR MASTER WOMEN'S 6 km SPRINT COMPETITION
A4: =COVER!A4 -> FINAL RESULTS
A5: =COVER!A5 -> Coleraine, MN | O5: =COVER!N5 -> Mt. Itasca Biathlon Association
C6: 40-49 Years Old
A7: Pos. | B7: StNr | C7: Name | D7: Club/Team/Hometown, State | E7: Start | F7: Ski Time | G7: P | H7: P | I7: S | J7: S | K7: T | L7: Final | M7: Behind | N7: NA-Pts | O7: % | P7: StNr | Q7: FINISH | S7: Points
A8: 1 | K8: =IF(ISBLANK(G8),"",G8+H8+I8+J8) ->  | L8: =IF(Q8>0,Q8-E8,"") ->  | M8: =IF(Q8>0,L8-L$8,"") ->  | N8: =IF(Q8>0,S8,"") ->  | O8: =IF(Q8>0,2-(L8/((L$8+L$9+L$10)/3)),"") ->  | P8: =B8 -> 0 | S8: 50
P9: 0 | S9: 46
P10: 0 | S10: 43
P11: 0 | S11: 40
P12: 0 | S12: 37
P13: 0 | S13: 34
P14: 0 | S14: 32
P15: 0 | S15: 30
P16: 0 | S16: 28
P17: 0 | S17: 26
P18: 0 | S18: 24
P19: 0 | S19: 22
P20: 0 | S20: 20
P21: 0 | S21: 18
P22: 0 | S22: 16
P23: 0 | S23: 15
P24: 0 | S24: 14
P25: 0 | S25: 13
P26: 0 | S26: 12
P27: 0 | S27: 11
S28: 10
S29: 9
S30: 8
S31: 7
S32: 6
S33: 5
S34: 4
S35: 3
S36: 2
S37: 1

Sheet Womens Veteran
A1: =COVER!A1 -> US Youth/Junior World Championships Trials
A2: =COVER!A2 -> 2014-12-30
A3: VETERAN WOMEN'S 6 km SPRINT COMPETITION
A4: =COVER!A4 -> FINAL RESULTS
A5: =COVER!A5 -> Coleraine, MN | O5: =COVER!N5 -> Mt. Itasca Biathlon Association
C6: 50+ Years Old
A7: Pos. | B7: StNr | C7: Name | D7: Club/Team/Hometown, State | E7: Start | F7: Ski Time | G7: P | H7: P | I7: S | J7: S | K7: T | L7: Final | M7: Behind | N7: NA-Pts | O7: % | P7: StNr | Q7: FINISH | S7: Points
A8: 1 | K8: =IF(ISBLANK(G8),"",G8+H8+I8+J8) ->  | L8: =IF(Q8>0,Q8-E8,"") ->  | M8: =IF(Q8>0,L8-L$8,"") ->  | N8: =IF(Q8>0,S8,"") ->  | O8: =IF(Q8>0,2-(L8/((L$8+L$9+L$10)/3)),"") ->  | P8: =B8 -> 0 | S8: 50
P9: 0 | S9: 46
P10: 0 | S10: 43
P11: 0 | S11: 40
P12: 0 | S12: 37
P13: 0 | S13: 34
P14: 0 | S14: 32
P15: 0 | S15: 30
P16: 0 | S16: 28
P17: 0 | S17: 26
P18: 0 | S18: 24
P19: 0 | S19: 22
P20: 0 | S20: 20
P21: 0 | S21: 18
P22: 0 | S22: 16
P23: 0 | S23: 15
P24: 0 | S24: 14
P25: 0 | S25: 13
P26: 0 | S26: 12
P27: 0 | S27: 11
S28: 10
S29: 9
S30: 8
S31: 7
S32: 6
S33: 5
S34: 4
S35: 3
S36: 2
S37: 1

Sheet Men Veteran
A1: =COVER!A1 -> US Youth/Junior World Championships Trials
A2: =COVER!A2 -> 2014-12-30
A3: VETERAN MEN'S 7.5 km SPRINT COMPETITION
A4: =COVER!A4 -> FINAL RESULTS
A5: =COVER!A5 -> Coleraine, MN | O5: =COVER!N5 -> Mt. Itasca Biathlon Association
C6: 50+ Years Old
A7: Pos. | B7: StNr | C7: Name | D7: Club/Team/Hometown, State | E7: Start | F7: Ski Time | G7: P | H7: P | I7: S | J7: S | K7: T | L7: Final | M7: Behind | N7: NA-Pts | O7: % | P7: StNr | Q7: FINISH | S7: Points
A8: 1 | K8: =IF(ISBLANK(G8),"",G8+H8+I8+J8) ->  | L8: =IF(Q8>0,Q8-E8,"") ->  | M8: =IF(Q8>0,L8-L$8,"") ->  | N8: =IF(Q8>0,S8,"") ->  | O8: =IF(Q8>0,2-(L8/((L$8+L$9+L$10)/3)),"") ->  | P8: =B8 -> 0 | S8: 50
A9: 2 | K9: =IF(ISBLANK(G9),"",G9+H9+I9+J9) ->  | P9: 0 | S9: 46
A10: 3 | P10: 0 | S10: 43
A11: 4 | P11: 0 | S11: 40
A12: 5 | P12: 0 | S12: 37
A13: 6 | P13: 0 | S13: 34
P14: 0 | S14: 32
L15: =IF(Q15>0,Q15-E15,"") ->  | M15: =IF(Q15>0,L15-L$8,"") ->  | N15: =IF(Q15>0,S15,"") ->  | O15: =IF(Q15>0,2-(L15/((L$8+L$9+L$10)/3)),"") ->  | P15: =B15 -> 0 | S15: 30
L16: =IF(Q16>0,Q16-E16,"") ->  | M16: =IF(Q16>0,L16-L$8,"") ->  | N16: =IF(Q16>0,S16,"") ->  | O16: =IF(Q16>0,2-(L16/((L$8+L$9+L$10)/3)),"") ->  | P16: 0 | S16: 28
L17: =IF(Q17>0,Q17-E17,"") ->  | M17: =IF(Q17>0,L17-L$8,"") ->  | N17: =IF(Q17>0,S17,"") ->  | O17: =IF(Q17>0,2-(L17/((L$8+L$9+L$10)/3)),"") ->  | P17: 0 | S17: 26
L18: =IF(Q18>0,Q18-E17,"") ->  | M18: =IF(Q18>0,L18-L$8,"") ->  | N18: =IF(Q18>0,S18,"") ->  | O18: =IF(Q18>0,2-(L18/((L$8+L$9+L$10)/3)),"") ->  | P18: 0 | S18: 24
P19: 0 | S19: 22
P20: 0 | S20: 20
P21: 0 | S21: 18
P22: 0 | S22: 16
P23: 0 | S23: 15
P24: 0 | S24: 14
P25: 0 | S25: 13
P26: 0 | S26: 12
P27: 0 | S27: 11
S28: 10 | V28: `
S29: 9
S30: 8
S31: 7
S32: 6
S33: 5
S34: 4
S35: 3
S36: 2
S37: 1
